[Event "ROU-chT 1st League 2019"]
[Site "Mamaia"]
[Date "2019.09.29"]
[Round "9.5"]
[White "Itkis, Boris"]
[Black "Anton, Teodor"]
[Result "1/2-1/2"]
[ECO "B09"]
[WhiteElo "2323"]
[BlackElo "2445"]
[Annotator "NA"]
[PlyCount "61"]
[EventDate "2019.09.21"]
[EventType "team-tourn"]
[EventCountry "ROU"]
[SourceTitle "playchess.com"]
[Source "ChessBase"]
[SourceQuality "1"]
[TimeControl "40/5400+30:1800+30"]

1. d4 {[%emt 0:00:00]} g6 {[%emt 0:01:34]} 2. e4 {[%emt 0:00:00]} Bg7 {[%emt 0:00:07]} 3. Nc3 {[%emt 0:00:22]} d6 {[%emt 0:00:06]} 4. f4 {[%emt 0:00:05]} Nf6 {[%emt 0:00:07]} 5. Nf3 {[%emt 0:00:06]} O-O {[%emt 0:00:09]} 6. e5 {[%emt 0:00:05]} Nh5 {[%emt 0:00:39]} 7. Bc4 {[%emt 0:20:29]} c6 {[%emt 0:05:30]} 8. O-O {[%emt 0:02:04]} b5 {[%emt 0:03:15]} 9. Bd3 {[%emt 0:01:38]} f5 {[%emt 0:02:46]} 10. exf6 {[%emt 0:02:25]} Nxf6 {[%emt 0:04:02]} 11. Qe2 {[%emt 0:03:03]} Na6 {[%emt 0:19:00]} 12. a4 {[%emt 0:05:40]} Nb4 {[%emt 0:05:14]} 13. axb5 {[%emt 0:00:58]} Nxd3 {[%emt 0:00:17]} 14. Qxd3 {[%emt 0:00:06]} cxb5 {[%emt 0:00:19]} 15. Qxb5 {[%emt 0:00:23]} Bf5 {[%emt 0:01:11]} 16. Qe2 {[%emt 0:02:01]} Qc7 {[%emt 0:02:00]} 17. Re1 {[%emt 0:03:58]} Rfe8 {[%emt 0:00:53]} 18. h3 {[%emt 0:02:45]} Qb7 {[%emt 0:04:04]} 19. Ng5 {[%emt 0:07:55]} Rac8 {[%emt 0:11:17]} 20. Qa6 {[%emt 0:07:31]} Qxa6 {[%emt 0:10:24]} 21. Rxa6 {[%emt 0:00:07]} Rc7 {[%emt 0:02:26]} 22. Ne6 {[%emt 0:02:11]} Rb7 {[%emt 0:01:58]} 23. Nxg7 {[%emt 0:05:43]} Kxg7 {[%emt 0:00:08]} 24. Re2 {[%emt 0:00:02]} h5 {[%emt 0:00:21]} 25. Ra2 {[%emt 0:05:49]} Rc8 {[%emt 0:01:15]} 26. d5 {[%emt 0:04:45]} Rc4 {[%emt 0:04:56]} 27. Be3 {[%emt 0:00:35]} a5 {[%emt 0:00:12]} 28. Bc1 {[%emt 0:03:11]} Rc5 {[%emt 0:00:44]} 29. Be3 {[%emt 0:00:08]} Rc4 {[%emt 0:00:05]} 30. Bc1 {[%emt 0:02:41]} Rc5 {[%emt 0:00:09]} 31. Be3 1/2-1/2

[Event "ROU-chT 1st League 2019"]
[Site "Mamaia"]
[Date "2019.09.29"]
[Round "9.6"]
[White "Banzea, Alexandru-Bogdan"]
[Black "Ileana, George"]
[Result "1/2-1/2"]
[ECO "B51"]
[WhiteElo "2401"]
[BlackElo "2349"]
[Annotator "NA"]
[PlyCount "73"]
[EventDate "2019.09.21"]
[EventType "team-tourn"]
[EventCountry "ROU"]
[SourceTitle "playchess.com"]
[Source "ChessBase"]
[SourceQuality "1"]
[TimeControl "40/5400+30:1800+30"]

1. e4 {[%emt 0:00:00]} c5 {[%emt 0:00:00]} 2. Nf3 {[%emt 0:00:00]} d6 {[%emt 0:00:00]} 3. Bb5+ {[%emt 0:00:00]} Nd7 {[%emt 0:00:00]} 4. d4 {[%emt 0:00:22]} cxd4 {[%emt 0:00:00]} 5. Qxd4 {[%emt 0:00:13]} a6 {[%emt 0:00:00]} 6. Bxd7+ {[%emt 0:00:10]} Bxd7 {[%emt 0:00:00]} 7. Nc3 {[%emt 0:00:10]} e5 {[%emt 0:05:17]} 8. Qd3 {[%emt 0:00:36]} h6 {[%emt 0:00:02]} 9. Nd2 {[%emt 0:00:24]} Rc8 {[%emt 0:03:21]} 10. Nc4 {[%emt 0:00:29]} Be6 {[%emt 0:00:07]} 11. Ne3 {[%emt 0:00:25]} Nf6 {[%emt 0:01:00]} 12. O-O {[%emt 0:00:20]} Be7 {[%emt 0:00:04]} 13. a4 {[%emt 0:01:32]} Qc7 {[%emt 0:00:37]} 14. Rd1 {[%emt 0:01:28]} O-O {[%emt 0:01:15]} 15. Bd2 {[%emt 0:01:37]} Bc4 {[%emt 0:05:51]} 16. Nxc4 {[%emt 0:00:18]} Qxc4 {[%emt 0:00:01]} 17. Qxc4 {[%emt 0:00:46]} Rxc4 {[%emt 0:00:05]} 18. f3 {[%emt 0:00:59]} Rfc8 {[%emt 0:01:03]} 19. Kf1 {[%emt 0:04:05]} Kf8 {[%emt 0:00:55]} 20. Be1 {[%emt 0:04:26]} R4c6 {[%emt 0:00:45]} 21. a5 {[%emt 0:10:47]} Bd8 {[%emt 0:02:08]} 22. Bf2 {[%emt 0:00:33]} Ke7 {[%emt 0:00:48]} 23. Rd3 {[%emt 0:00:59]} Ke6 {[%emt 0:01:09]} 24. Ke2 {[%emt 0:03:10]} Nh5 {[%emt 0:00:56]} 25. g3 {[%emt 0:02:06]} g6 {[%emt 0:00:05]} 26. Be3 {[%emt 0:19:48]} Bg5 {[%emt 0:00:48]} 27. Ra4 {[%emt 0:07:48]} f5 {[%emt 0:02:33]} 28. Rb4 {[%emt 0:01:43]} R8c7 {[%emt 0:00:14]} 29. Nd5 {[%emt 0:06:27]} Rf7 {[%emt 0:00:10]} 30. c3 {[%emt 0:06:29]} Bxe3 {[%emt 0:06:44]} 31. Kxe3 {[%emt 0:08:16]} Rc5 {[%emt 0:08:22]} 32. g4 {[%emt 0:10:29]} Ng7 {[%emt 0:08:05]} 33. Nb6 {[%emt 0:01:45]} Rfc7 {[%emt 0:00:51]} 34. Nd5 {[%emt 0:00:15]} Rf7 {[%emt 0:00:06]} 35. Nb6 {[%emt 0:00:06]} Rfc7 {[%emt 0:04:28]} 36. Nd5 {[%emt 0:00:06]} Rf7 {[%emt 0:00:07]} 37. Nb6 1/2-1/2

[Event "ROU-chT 1st League 2019"]
[Site "Mamaia"]
[Date "2019.09.29"]
[Round "9.7"]
[White "Erdos, Viktor"]
[Black "Oltean, Dorel"]
[Result "1-0"]
[ECO "D27"]
[WhiteElo "2604"]
[BlackElo "2333"]
[Annotator "ChessBase"]
[PlyCount "49"]
[EventDate "2019.09.21"]
[EventType "team-tourn"]
[EventCountry "ROU"]
[SourceTitle "playchess.com"]
[Source "ChessBase"]
[SourceQuality "1"]
[TimeControl "40/5400+30:1800+30"]

1. d4 {[%emt 0:08:29]} d5 {[%emt 0:00:00]} 2. Nf3 {[%emt 0:00:11]} Nf6 {[%emt 0:00:00]} 3. c4 {[%emt 0:00:07]} c6 {[%emt 0:00:13]} 4. e3 {[%emt 0:00:13]} e6 {[%emt 0:00:13]} 5. Bd3 {[%emt 0:00:37]} dxc4 {[%emt 0:02:36]} 6. Bxc4 {[%emt 0:00:10]} a6 {[%emt 0:01:16]} 7. O-O {[%emt 0:00:46]} c5 {[%emt 0:01:20]} 8. Nc3 {[%emt 0:03:35]} b5 {[%emt 0:03:46]} 9. Be2 {[%emt 0:00:19]} Bb7 {[%emt 0:01:02]} 10. dxc5 {[%emt 0:00:04]} Qxd1 {[%emt 0:02:38]} 11. Rxd1 {[%emt 0:00:05]} Bxc5 {[%emt 0:00:11]} 12. Nd2 {[%emt 0:00:09]} Nbd7 {[%emt 0:11:16]} 13. Nb3 {[%emt 0:00:44]} Bb6 {[%emt 0:09:48]} 14. a4 {[%emt 0:00:28]} b4 {[%emt 0:06:33]} 15. a5 {[%emt 0:00:39]} Ba7 {[%emt 0:06:16]} 16. Na2 {[%emt 0:03:34]} Nc5 {[%emt 0:14:03]} 17. Nxc5 {[%emt 0:17:24]} Bxc5 {[%emt 0:00:38]} 18. Bd2 {[%emt 0:00:09]} b3 {[%emt 0:06:32]} 19. Nc1 {[%emt 0:02:51]} Bd5 {[%emt 0:00:52]} 20. f3 {[%emt 0:02:04]} O-O {[%emt 0:07:42]} 21. Kf1 {[%emt 0:03:38]} Rfb8 {[%emt 0:02:41]} 22. e4 {[%emt 0:08:20]} Bc6 {[%emt 0:07:26]} 23. Bf4 {[%emt 0:00:28]} Rb4 {[%emt 0:00:36]} 24. Nd3 {[%emt 0:01:06]} Rb5 {[%emt 0:02:12]} 25. Rac1 {[%emt 0:02:41]} 1-0

[Event "ROU-chT 1st League 2019"]
[Site "Mamaia"]
[Date "2019.09.29"]
[Round "9.8"]
[White "Florescu, Codrut-Constantin"]
[Black "Gonda, Laszlo"]
[Result "1/2-1/2"]
[ECO "A47"]
[WhiteElo "2286"]
[BlackElo "2541"]
[Annotator "ChessBase"]
[PlyCount "36"]
[EventDate "2019.09.21"]
[EventType "team-tourn"]
[EventCountry "ROU"]
[SourceTitle "playchess.com"]
[Source "ChessBase"]
[SourceQuality "1"]
[TimeControl "40/5400+30:1800+30"]

1. d4 {[%emt 0:00:00]} Nf6 {[%emt 0:05:23]} 2. Nf3 {[%emt 0:00:00]} b6 {[%emt 0:00:07]} 3. g3 {[%emt 0:00:19]} Bb7 {[%emt 0:00:06]} 4. Bg2 {[%emt 0:00:05]} g6 {[%emt 0:00:09]} 5. O-O {[%emt 0:01:21]} Bg7 {[%emt 0:00:03]} 6. c4 {[%emt 0:02:12]} O-O {[%emt 0:00:05]} 7. Re1 {[%emt 0:06:52]} e6 {[%emt 0:06:25]} 8. Nc3 {[%emt 0:09:41]} Ne4 {[%emt 0:00:13]} 9. Bd2 {[%emt 0:01:35]} d6 {[%emt 0:06:55]} 10. Nxe4 {[%emt 0:01:14]} Bxe4 {[%emt 0:00:03]} 11. Bc3 {[%emt 0:00:07]} Nd7 {[%emt 0:05:49]} 12. Qa4 {[%emt 0:05:26]} c5 {[%emt 0:14:32]} 13. Rad1 {[%emt 0:05:38]} Qc7 {[%emt 0:02:00]} 14. Ne5 {[%emt 0:11:18]} Bxg2 {[%emt 0:17:59]} 15. Qxd7 {[%emt 0:00:22]} Qxd7 {[%emt 0:00:23]} 16. Nxd7 {[%emt 0:00:10]} Rfd8 {[%emt 0:00:04]} 17. Kxg2 {[%emt 0:02:39]} Rxd7 {[%emt 0:00:02]} 18. dxc5 {[%emt 0:04:31]} bxc5 {[%emt 0:00:07]} 1/2-1/2

[Event "ROU-chT 1st League 2019"]
[Site "Mamaia"]
[Date "2019.09.29"]
[Round "9.9"]
[White "Grigore, George-Gabriel"]
[Black "Oltean, Liviu-Ioan"]
[Result "1-0"]
[ECO "D45"]
[WhiteElo "2491"]
[BlackElo "2313"]
[Annotator "ChessBase"]
[PlyCount "65"]
[EventDate "2019.09.21"]
[EventType "team-tourn"]
[EventCountry "ROU"]
[SourceTitle "playchess.com"]
[Source "ChessBase"]
[SourceQuality "1"]
[TimeControl "40/5400+30:1800+30"]

1. d4 {[%emt 0:05:17]} d5 {[%emt 0:00:00]} 2. c4 {[%emt 0:00:18]} c6 {[%emt 0:00:00]} 3. Nf3 {[%emt 0:00:09]} Nf6 {[%emt 0:00:04]} 4. Nc3 {[%emt 0:00:06]} e6 {[%emt 0:02:02]} 5. e3 {[%emt 0:00:30]} a6 {[%emt 0:00:11]} 6. Qc2 {[%emt 0:06:03]} Be7 {[%emt 0:02:51]} 7. b3 {[%emt 0:01:52]} b5 {[%emt 0:01:04]} 8. Bd3 {[%emt 0:00:52]} Nbd7 {[%emt 0:03:12]} 9. O-O {[%emt 0:00:23]} bxc4 {[%emt 0:04:14]} 10. bxc4 {[%emt 0:00:38]} dxc4 {[%emt 0:00:03]} 11. Bxc4 {[%emt 0:00:26]} c5 {[%emt 0:00:08]} 12. d5 {[%emt 0:09:28]} exd5 {[%emt 0:13:38]} 13. Nxd5 {[%emt 0:01:53]} Nxd5 {[%emt 0:01:08]} 14. Bxd5 {[%emt 0:00:09]} Rb8 {[%emt 0:00:06]} 15. e4 {[%emt 0:19:51]} O-O {[%emt 0:03:58]} 16. Bf4 {[%emt 0:02:06]} Rb6 {[%emt 0:07:07]} 17. Rad1 {[%emt 0:00:35]} Bb7 {[%emt 0:03:43]} 18. Bxb7 {[%emt 0:13:26]} Rxb7 {[%emt 0:00:11]} 19. Ne5 {[%emt 0:04:39]} Qc8 {[%emt 0:02:32]} 20. Nc4 {[%emt 0:00:18]} Nb6 {[%emt 0:09:28]} 21. Nd6 {[%emt 0:00:18]} Bxd6 {[%emt 0:00:18]} 22. Rxd6 {[%emt 0:01:18]} Re8 {[%emt 0:14:02]} 23. f3 {[%emt 0:03:16]} a5 {[%emt 0:05:24]} 24. Rfd1 {[%emt 0:02:00]} c4 {[%emt 0:02:28]} 25. Rb1 {[%emt 0:03:21]} Nd7 {[%emt 0:16:05]} 26. Rxb7 {[%emt 0:00:57]} Qxb7 {[%emt 0:00:03]} 27. Qxc4 {[%emt 0:00:18]} Nf8 {[%emt 0:00:12]} 28. h3 {[%emt 0:04:21]} Ne6 {[%emt 0:01:31]} 29. Bg3 {[%emt 0:02:09]} h6 {[%emt 0:01:15]} 30. Kh2 {[%emt 0:01:40]} Qb2 {[%emt 0:03:18]} 31. Qc6 {[%emt 0:04:40]} Rb8 {[%emt 0:03:26]} 32. Rxe6 {[%emt 0:00:39]} fxe6 {[%emt 0:00:40]} 33. Qxe6+ {[%emt 0:00:12]} 1-0

[Event "ROU-chT 1st League 2019"]
[Site "Mamaia"]
[Date "2019.09.29"]
[Round "9.10"]
[White "Zubac, Marius"]
[Black "Manea, Alexandru"]
[Result "0-1"]
[ECO "A40"]
[WhiteElo "2135"]
[BlackElo "2305"]
[Annotator "NA"]
[PlyCount "138"]
[EventDate "2019.09.21"]
[EventType "team-tourn"]
[EventCountry "ROU"]
[SourceTitle "playchess.com"]
[Source "ChessBase"]
[SourceQuality "1"]
[TimeControl "40/5400+30:1800+30"]

1. d4 {[%emt 0:00:00]} e6 {[%emt 0:04:56]} 2. c4 {[%emt 0:00:14]} b6 {[%emt 0:01:34]} 3. e4 {[%emt 0:05:13]} Bb7 {[%emt 0:01:41]} 4. Nc3 {[%emt 0:00:57]} Bb4 {[%emt 0:01:00]} 5. f3 {[%emt 0:00:09]} Ne7 {[%emt 0:01:21]} 6. Bg5 {[%emt 0:03:22]} h6 {[%emt 0:10:36]} 7. Bh4 {[%emt 0:06:01]} O-O {[%emt 0:04:27]} 8. Bd3 {[%emt 0:01:59]} d5 {[%emt 0:03:04]} 9. cxd5 {[%emt 0:04:05]} exd5 {[%emt 0:01:52]} 10. e5 {[%emt 0:00:07]} c5 {[%emt 0:00:11]} 11. a3 {[%emt 0:00:10]} cxd4 {[%emt 0:01:52]} 12. axb4 {[%emt 0:00:04]} dxc3 {[%emt 0:00:15]} 13. bxc3 {[%emt 0:00:04]} Qc7 {[%emt 0:00:13]} 14. Ne2 {[%emt 0:01:39]} Qxe5 {[%emt 0:00:43]} 15. O-O {[%emt 0:00:07]} Nf5 {[%emt 0:04:19]} 16. Bxf5 {[%emt 0:00:07]} Qxf5 {[%emt 0:00:02]} 17. Nd4 {[%emt 0:10:42]} Qc8 {[%emt 0:04:42]} 18. b5 {[%emt 0:04:08]} a6 {[%emt 0:04:03]} 19. Kh1 {[%emt 0:02:20]} axb5 {[%emt 0:00:17]} 20. Rxa8 {[%emt 0:00:09]} Bxa8 {[%emt 0:00:06]} 21. Nxb5 {[%emt 0:00:31]} Qc5 {[%emt 0:04:03]} 22. Qb3 {[%emt 0:13:31]} Bc6 {[%emt 0:08:56]} 23. Nd4 {[%emt 0:01:30]} Bd7 {[%emt 0:07:15]} 24. Rb1 {[%emt 0:02:49]} Nc6 {[%emt 0:00:58]} 25. Bf2 {[%emt 0:11:00]} Ra8 {[%emt 0:03:50]} 26. Qxb6 {[%emt 0:13:43]} Qxc3 {[%emt 0:13:13]} 27. Qc7 {[%emt 0:03:07]} Ra7 {[%emt 0:10:35]} 28. Qf4 {[%emt 0:04:51]} Ra1 {[%emt 0:04:00]} 29. Rg1 {[%emt 0:00:26]} Ra4 {[%emt 0:01:16]} 30. Rd1 {[%emt 0:01:43]} Ra1 {[%emt 0:00:18]} 31. Rg1 {[%emt 0:00:18]} Ra2 {[%emt 0:00:49]} 32. Nxc6 {[%emt 0:00:41]} Qxc6 {[%emt 0:00:46]} 33. Bd4 {[%emt 0:02:39]} Re2 {[%emt 0:00:31]} 34. Qb8+ {[%emt 0:02:19]} Kh7 {[%emt 0:01:26]} 35. Qb1+ {[%emt 0:00:07]} Qg6 {[%emt 0:00:07]} 36. Qd1 {[%emt 0:00:57]} Rc2 {[%emt 0:00:43]} 37. Ba1 {[%emt 0:01:43]} Be6 {[%emt 0:00:18]} 38. Qd4 {[%emt 0:00:26]} Re2 {[%emt 0:00:41]} 39. Qd1 {[%emt 0:01:15]} Rc2 {[%emt 0:00:19]} 40. Qd4 {[%emt 0:00:00]} Re2 {[%emt 0:00:00]} 41. g4 {[%emt 0:10:50]} f6 {[%emt 0:02:14]} 42. h4 {[%emt 0:02:53]} Qc2 {[%emt 0:06:32]} 43. Qf4 {[%emt 0:00:08]} Qd2 {[%emt 0:06:42]} 44. Qxd2 {[%emt 0:03:25]} Rxd2 {[%emt 0:00:39]} 45. g5 {[%emt 0:00:06]} hxg5 {[%emt 0:06:07]} 46. hxg5 {[%emt 0:00:11]} d4 {[%emt 0:00:07]} 47. gxf6 {[%emt 0:00:56]} gxf6 {[%emt 0:00:01]} 48. Rg2 {[%emt 0:00:30]} Rd1+ {[%emt 0:00:07]} 49. Rg1 {[%emt 0:00:16]} Rd3 {[%emt 0:00:05]} 50. Kg2 {[%emt 0:00:19]} Bd5 {[%emt 0:00:08]} 51. Kg3 {[%emt 0:02:28]} Rxf3+ {[%emt 0:02:05]} 52. Kg4 {[%emt 0:00:02]} d3 {[%emt 0:00:20]} 53. Bc3 {[%emt 0:01:05]} Rf2 {[%emt 0:01:57]} 54. Kg3 {[%emt 0:01:26]} Rf5 {[%emt 0:02:15]} 55. Rd1 {[%emt 0:03:25]} Rf3+ {[%emt 0:00:44]} 56. Kg4 {[%emt 0:00:05]} Kg6 {[%emt 0:00:12]} 57. Rg1 {[%emt 0:01:14]} Be4 {[%emt 0:02:02]} 58. Rg2 {[%emt 0:03:21]} f5+ {[%emt 0:01:56]} 59. Kh4+ {[%emt 0:00:02]} Kf7 {[%emt 0:00:07]} 60. Kg5 {[%emt 0:02:53]} Ke6 {[%emt 0:00:18]} 61. Rb2 {[%emt 0:01:35]} Kd5 {[%emt 0:00:18]} 62. Bd2 {[%emt 0:00:34]} Rf2 {[%emt 0:00:23]} 63. Rb5+ {[%emt 0:02:08]} Ke6 {[%emt 0:02:34]} 64. Rb6+ {[%emt 0:00:12]} Ke5 {[%emt 0:01:18]} 65. Rb5+ {[%emt 0:01:59]} Bd5 {[%emt 0:00:29]} 66. Rb2 {[%emt 0:00:44]} Rg2+ {[%emt 0:00:05]} 67. Kh4 {[%emt 0:00:52]} Kd4 {[%emt 0:01:41]} 68. Kh3 {[%emt 0:00:30]} Rxd2 {[%emt 0:03:09]} 69. Rxd2 {[%emt 0:00:05]} Ke3 {[%emt 0:00:05]} 0-1

[Event "ROU-chT 1st League 2019"]
[Site "Mamaia"]
[Date "2019.09.29"]
[Round "9.11"]
[White "Szabo, Attila"]
[Black "Helmer, Janos"]
[Result "1-0"]
[ECO "A35"]
[WhiteElo "2239"]
[BlackElo "1990"]
[Annotator "NA"]
[PlyCount "117"]
[EventDate "2019.09.21"]
[EventType "team-tourn"]
[EventCountry "ROU"]
[SourceTitle "playchess.com"]
[Source "ChessBase"]
[SourceQuality "1"]
[TimeControl "40/5400+30:1800+30"]

1. c4 {[%emt 0:07:35]} c5 {[%emt 0:00:00]} 2. Nc3 {[%emt 0:00:20]} Nf6 {[%emt 0:01:29]} 3. Nf3 {[%emt 0:00:07]} Nc6 {[%emt 0:03:26]} 4. d4 {[%emt 0:01:08]} cxd4 {[%emt 0:00:07]} 5. Nxd4 {[%emt 0:00:05]} g6 {[%emt 0:00:32]} 6. e4 {[%emt 0:00:47]} d6 {[%emt 0:00:06]} 7. Be2 {[%emt 0:00:31]} Bg7 {[%emt 0:00:13]} 8. Be3 {[%emt 0:00:06]} O-O {[%emt 0:02:16]} 9. O-O {[%emt 0:01:40]} Bd7 {[%emt 0:01:56]} 10. Qd2 {[%emt 0:00:36]} Nxd4 {[%emt 0:01:05]} 11. Bxd4 {[%emt 0:00:09]} Bc6 {[%emt 0:00:06]} 12. f3 {[%emt 0:00:06]} a5 {[%emt 0:00:40]} 13. b3 {[%emt 0:00:25]} Nd7 {[%emt 0:02:45]} 14. Be3 {[%emt 0:00:08]} Nc5 {[%emt 0:08:08]} 15. Rab1 {[%emt 0:02:09]} Qb6 {[%emt 0:02:45]} 16. Nd5 {[%emt 0:02:18]} Bxd5 {[%emt 0:00:43]} 17. exd5 {[%emt 0:00:02]} Qb4 {[%emt 0:03:31]} 18. Qc1 {[%emt 0:25:28]} Qc3 {[%emt 0:07:13]} 19. a3 {[%emt 0:07:20]} Rfc8 {[%emt 0:01:56]} 20. Qxc3 {[%emt 0:06:43]} Bxc3 {[%emt 0:00:03]} 21. Rfc1 {[%emt 0:03:02]} Bg7 {[%emt 0:01:01]} 22. Kf2 {[%emt 0:01:39]} Rc7 {[%emt 0:01:32]} 23. g4 {[%emt 0:05:24]} Rf8 {[%emt 0:03:31]} 24. Kg3 {[%emt 0:03:30]} f5 {[%emt 0:06:16]} 25. h3 {[%emt 0:06:14]} Be5+ {[%emt 0:08:47]} 26. Kg2 {[%emt 0:01:03]} f4 {[%emt 0:02:28]} 27. Bf2 {[%emt 0:02:47]} Ra8 {[%emt 0:01:21]} 28. h4 {[%emt 0:01:16]} Kf7 {[%emt 0:01:11]} 29. g5 {[%emt 0:00:39]} h6 {[%emt 0:03:41]} 30. gxh6 {[%emt 0:03:23]} Rh8 {[%emt 0:00:08]} 31. Kh3 {[%emt 0:04:55]} Rxh6 {[%emt 0:00:16]} 32. b4 {[%emt 0:00:48]} axb4 {[%emt 0:00:21]} 33. axb4 {[%emt 0:00:02]} Na4 {[%emt 0:01:25]} 34. Rb3 {[%emt 0:00:13]} Rh8 {[%emt 0:01:56]} 35. Rc2 {[%emt 0:02:15]} b5 {[%emt 0:06:30]} 36. c5 {[%emt 0:00:21]} Rb8 {[%emt 0:00:59]} 37. Kg4 {[%emt 0:03:38]} dxc5 {[%emt 0:03:15]} 38. bxc5 {[%emt 0:00:19]} Bd6 {[%emt 0:01:40]} 39. c6 {[%emt 0:00:00]} b4 {[%emt 0:00:00]} 40. Bd3 {[%emt 0:00:00]} Rcc8 {[%emt 0:00:00]} 41. Kg5 {[%emt 0:06:17]} Rg8 {[%emt 0:13:23]} 42. Bd4 {[%emt 0:00:17]} Nc3 {[%emt 0:09:54]} 43. Bxc3 {[%emt 0:03:05]} bxc3 {[%emt 0:00:30]} 44. Rxb8 {[%emt 0:00:08]} Bxb8 {[%emt 0:00:13]} 45. Rxc3 {[%emt 0:00:08]} Be5 {[%emt 0:00:39]} 46. Rc2 {[%emt 0:02:02]} e6 {[%emt 0:12:53]} 47. dxe6+ {[%emt 0:03:30]} Ke7 {[%emt 0:00:06]} 48. Bxg6 {[%emt 0:06:33]} Kxe6 {[%emt 0:01:21]} 49. h5 {[%emt 0:00:13]} Bc7 {[%emt 0:01:25]} 50. h6 {[%emt 0:00:40]} Bd8+ {[%emt 0:00:27]} 51. Kh5 {[%emt 0:00:08]} Bc7 {[%emt 0:00:41]} 52. Rd2 {[%emt 0:01:40]} Ra8 {[%emt 0:01:53]} 53. Rd7 {[%emt 0:02:25]} Be5 {[%emt 0:00:51]} 54. Kg5 {[%emt 0:00:27]} Bf6+ {[%emt 0:00:24]} 55. Kxf4 {[%emt 0:00:12]} Ra4+ {[%emt 0:00:43]} 56. Be4 {[%emt 0:00:12]} Ra5 {[%emt 0:01:48]} 57. Bd5+ {[%emt 0:02:02]} Rxd5 {[%emt 0:00:22]} 58. Rxd5 {[%emt 0:00:02]} Kxd5 {[%emt 0:00:09]} 59. Kf5 {[%emt 0:00:05]} 1-0

[Event "ROU-chT 1st League 2019"]
[Site "Mamaia"]
[Date "2019.09.29"]
[Round "9.12"]
[White "Bobocea, Laurentiu-Vlad"]
[Black "Vasiesiu, Victor"]
[Result "1/2-1/2"]
[ECO "A96"]
[WhiteElo "1921"]
[BlackElo "2251"]
[Annotator "NA"]
[PlyCount "74"]
[EventDate "2019.09.21"]
[EventType "team-tourn"]
[EventCountry "ROU"]
[SourceTitle "playchess.com"]
[Source "ChessBase"]
[SourceQuality "1"]
[TimeControl "40/5400+30:1800+30"]

1. d4 {[%emt 0:00:00]} e6 {[%emt 0:00:00]} 2. c4 {[%emt 0:00:00]} f5 {[%emt 0:00:00]} 3. Nf3 {[%emt 0:00:08]} Nf6 {[%emt 0:04:31]} 4. g3 {[%emt 0:00:15]} Be7 {[%emt 0:00:04]} 5. Bg2 {[%emt 0:00:04]} O-O {[%emt 0:00:06]} 6. O-O {[%emt 0:00:05]} d6 {[%emt 0:00:05]} 7. b3 {[%emt 0:02:30]} Ne4 {[%emt 0:02:19]} 8. Bb2 {[%emt 0:02:05]} Bf6 {[%emt 0:00:05]} 9. Nbd2 {[%emt 0:01:07]} Nc6 {[%emt 0:00:09]} 10. Qc2 {[%emt 0:02:44]} Nb4 {[%emt 0:02:09]} 11. Qb1 {[%emt 0:00:40]} Nxd2 {[%emt 0:00:08]} 12. Nxd2 {[%emt 0:00:06]} e5 {[%emt 0:00:04]} 13. d5 {[%emt 0:02:48]} a5 {[%emt 0:01:16]} 14. a3 {[%emt 0:01:22]} Na6 {[%emt 0:00:04]} 15. e4 {[%emt 0:03:56]} f4 {[%emt 0:00:26]} 16. b4 {[%emt 0:01:50]} Qe8 {[%emt 0:00:10]} 17. Nb3 {[%emt 0:10:26]} a4 {[%emt 0:02:15]} 18. Nd2 {[%emt 0:04:33]} Qh5 {[%emt 0:01:09]} 19. Qd1 {[%emt 0:05:29]} Bg4 {[%emt 0:00:01]} 20. Bf3 {[%emt 0:02:50]} Bxf3 {[%emt 0:02:27]} 21. Qxf3 {[%emt 0:01:55]} Qh6 {[%emt 0:01:03]} 22. Rad1 {[%emt 0:07:56]} fxg3 {[%emt 0:08:23]} 23. fxg3 {[%emt 0:01:59]} Bg5 {[%emt 0:00:36]} 24. Qd3 {[%emt 0:02:17]} Rxf1+ {[%emt 0:02:22]} 25. Nxf1 {[%emt 0:00:09]} Rf8 {[%emt 0:00:06]} 26. Qe2 {[%emt 0:04:12]} Qf6 {[%emt 0:07:55]} 27. Kg2 {[%emt 0:00:55]} h5 {[%emt 0:01:54]} 28. Rd3 {[%emt 0:07:48]} Nb8 {[%emt 0:03:51]} 29. Bc3 {[%emt 0:04:48]} Nd7 {[%emt 0:00:36]} 30. Bd2 {[%emt 0:00:43]} Qg6 {[%emt 0:03:24]} 31. Rf3 {[%emt 0:08:59]} Rxf3 {[%emt 0:09:11]} 32. Qxf3 {[%emt 0:00:24]} Be7 {[%emt 0:00:25]} 33. Ne3 {[%emt 0:08:00]} Bg5 {[%emt 0:00:08]} 34. Nf5 {[%emt 0:05:17]} Qf6 {[%emt 0:01:12]} 35. Bxg5 {[%emt 0:02:24]} Qxg5 {[%emt 0:00:06]} 36. Qe3 {[%emt 0:00:02]} Qxe3 {[%emt 0:06:00]} 37. Nxe3 {[%emt 0:00:05]} Kf7 {[%emt 0:00:58]} 1/2-1/2

[Event "ROU-chT 1st League 2019"]
[Site "Mamaia"]
[Date "2019.09.29"]
[Round "9.15"]
[White "Ghimpu, Samuel-Timotei"]
[Black "Murariu, Andrei"]
[Result "0-1"]
[ECO "D10"]
[WhiteElo "2158"]
[BlackElo "2495"]
[Annotator "ChessBase"]
[PlyCount "84"]
[EventDate "2019.09.21"]
[EventType "team-tourn"]
[EventCountry "ROU"]
[SourceTitle "playchess.com"]
[Source "ChessBase"]
[SourceQuality "1"]
[TimeControl "40/5400+30:1800+30"]

1. d4 {[%emt 0:00:00]} d5 {[%emt 0:04:39]} 2. c4 {[%emt 0:00:00]} c6 {[%emt 0:00:10]} 3. cxd5 {[%emt 0:00:08]} cxd5 {[%emt 0:00:11]} 4. Nc3 {[%emt 0:00:08]} Nf6 {[%emt 0:00:15]} 5. Bf4 {[%emt 0:00:19]} Nc6 {[%emt 0:00:14]} 6. e3 {[%emt 0:00:19]} a6 {[%emt 0:00:31]} 7. Nf3 {[%emt 0:19:02]} Bg4 {[%emt 0:01:38]} 8. h3 {[%emt 0:02:52]} Bxf3 {[%emt 0:08:34]} 9. Qxf3 {[%emt 0:00:36]} e6 {[%emt 0:01:10]} 10. Bd3 {[%emt 0:02:15]} Be7 {[%emt 0:00:30]} 11. O-O {[%emt 0:00:31]} O-O {[%emt 0:00:24]} 12. Rfc1 {[%emt 0:13:45]} Rc8 {[%emt 0:01:58]} 13. Qe2 {[%emt 0:13:08]} Nd7 {[%emt 0:07:43]} 14. Rd1 {[%emt 0:26:17]} f5 {[%emt 0:10:29]} 15. g4 {[%emt 0:05:20]} Nb6 {[%emt 0:02:37]} 16. Kh1 {[%emt 0:01:17]} Bd6 {[%emt 0:09:04]} 17. Bxd6 {[%emt 0:02:41]} Qxd6 {[%emt 0:00:05]} 18. f4 {[%emt 0:01:22]} Ne7 {[%emt 0:12:29]} 19. Rac1 {[%emt 0:00:47]} Rc6 {[%emt 0:02:45]} 20. Rc2 {[%emt 0:01:48]} Qb4 {[%emt 0:08:06]} 21. Rdc1 {[%emt 0:01:10]} Nc4 {[%emt 0:04:15]} 22. Nd1 {[%emt 0:00:34]} Rfc8 {[%emt 0:04:36]} 23. Kg2 {[%emt 0:02:04]} g6 {[%emt 0:04:18]} 24. g5 {[%emt 0:01:20]} a5 {[%emt 0:02:03]} 25. Kf2 {[%emt 0:01:27]} a4 {[%emt 0:00:43]} 26. Qe1 {[%emt 0:01:20]} Nxb2 {[%emt 0:00:56]} 27. Nxb2 {[%emt 0:02:10]} Rxc2+ {[%emt 0:00:09]} 28. Rxc2 {[%emt 0:00:07]} Rxc2+ {[%emt 0:00:05]} 29. Bxc2 {[%emt 0:00:01]} Qxb2 {[%emt 0:00:08]} 30. Qb1 {[%emt 0:00:03]} Qxb1 {[%emt 0:02:21]} 31. Bxb1 {[%emt 0:00:01]} Nc8 {[%emt 0:01:21]} 32. Bc2 {[%emt 0:01:02]} b5 {[%emt 0:01:33]} 33. Ke2 {[%emt 0:00:52]} Nb6 {[%emt 0:01:39]} 34. h4 {[%emt 0:01:41]} Kf7 {[%emt 0:00:27]} 35. Bd1 {[%emt 0:00:23]} Nc4 {[%emt 0:01:39]} 36. Kf2 {[%emt 0:00:37]} Nb2 {[%emt 0:00:54]} 37. Bc2 {[%emt 0:00:30]} Ke7 {[%emt 0:00:21]} 38. Ke2 {[%emt 0:00:13]} Kd6 {[%emt 0:04:44]} 39. Kd2 {[%emt 0:00:46]} Nc4+ {[%emt 0:00:07]} 40. Ke2 {[%emt 0:00:00]} Kc6 {[%emt 0:00:00]} 41. Kf2 {[%emt 0:00:54]} Kb6 {[%emt 0:02:28]} 42. h5 {[%emt 0:01:48]} gxh5 {[%emt 0:02:15]} 0-1